bitfinex/quotes_BTCUSD_20250601
["timestamp","ask_amount","ask_price","bid_price","bid_amount"]
[1748801025508,5.19794539,104950.0,104940.0,0.39204938]
[1748801025709,5.19794539,104950.0,104940.0,0.40096236]
[1748801025919,5.29045661,104950.0,104940.0,0.05332232]
[1748801026125,5.19794539,104950.0,104940.0,0.0414085]
[1748801026327,5.19794539,104950.0,104940.0,0.05332668]
[1748801026734,5.19794539,104950.0,104940.0,0.04445794]
[1748801026943,5.19794539,104950.0,104940.0,0.0414085]
[1748801027147,5.19794539,104950.0,104940.0,0.05332654]
[1748801027351,5.19794539,104950.0,104940.0,0.0414085]
[1748801027531,5.19794539,104950.0,104940.0,0.04445796]
[1748801027987,5.19894539,104950.0,104940.0,0.04445796]
[1748801028211,5.19994539,104950.0,104940.0,0.04445796]
[1748801028417,5.19994539,104950.0,104940.0,0.3874085]
[1748801028624,5.19994539,104950.0,104940.0,0.3566885]
[1748801029241,5.21921379,104950.0,104940.0,0.3566885]
[1748801029446,5.21921379,104950.0,104940.0,0.3889885]
[1748801030304,5.21921379,104950.0,104940.0,0.3887085]
[1748801030537,5.21921379,104950.0,104940.0,0.39175805]
[1748801030778,5.21921379,104950.0,104940.0,0.39175801]
[1748801031688,5.21921379,104950.0,104940.0,0.04615801]
[1748801033591,5.21921379,104950.0,104940.0,0.05505266]
[1748801034854,5.21921379,104950.0,104940.0,0.05505559]
[1748801035682,5.21921379,104950.0,104940.0,0.05505736]
[1748801036448,5.21921379,104950.0,104940.0,0.05506209]
[1748801036676,5.21921379,104950.0,104940.0,0.04615801]
[1748801036898,5.21921379,104950.0,104940.0,0.05506171]
[1748801037233,5.21921379,104950.0,104940.0,0.05506165]
[1748801037749,5.21921379,104950.0,104940.0,0.05506164]
[1748801037963,5.21921379,104950.0,104940.0,0.01385801]
[1748801038171,5.21921379,104950.0,104940.0,0.04615801]
[1748801038383,5.21921379,104950.0,104940.0,0.05506164]
[1748801038591,5.21921379,104950.0,104940.0,0.04615801]
[1748801039396,5.21921379,104950.0,104940.0,0.39770164]
[1748801039845,5.21921379,104950.0,104940.0,0.39758162]
[1748801040491,5.21921379,104950.0,104940.0,0.39758285]
[1748801041799,5.21921379,104950.0,104940.0,0.39758597]
[1748801042712,5.21921379,104950.0,104940.0,0.39758796]
[1748801043143,5.21921379,104950.0,104940.0,0.38867799]
[1748801043348,5.21921379,104950.0,104940.0,0.39758792]
[1748801043550,5.21921379,104950.0,104940.0,0.39758791]
[1748801043753,5.21921379,104950.0,104940.0,0.39758839]
[1748801044165,5.21921379,104950.0,104940.0,0.38867799]
[1748801044384,5.21921379,104950.0,104940.0,0.39758864]
[1748801045469,5.21921379,104950.0,104940.0,0.38867799]
[1748801045676,5.21921379,104950.0,104940.0,0.39758915]
[1748801045896,5.22874186,104950.0,104940.0,0.39758915]
[1748801046108,0.04032463,104950.0,104940.0,0.61676043]
[1748801046319,0.24041981,104950.0,104940.0,0.59832122]
[1748801046536,0.24041981,104950.0,104940.0,0.61676012]
[1748801046736,0.58041981,104950.0,104940.0,0.61676012]
[1748801046953,0.58041981,104950.0,104940.0,0.62323943]
[1748801047156,0.58041981,104950.0,104940.0,0.62628845]
[1748801047558,0.58041981,104950.0,104940.0,0.61737844]
[1748801047731,0.38985179,104950.0,104940.0,0.63581768]
[1748801047882,0.38985161,104950.0,104940.0,0.62690705]
[1748801048292,0.39937968,104950.0,104940.0,0.63581755]
[1748801048493,0.35152752,104950.0,104940.0,0.63581755]
[1748801048684,0.36105532,104950.0,104940.0,0.63581755]
[1748801048884,0.37058321,104950.0,104940.0,0.63581755]
[1748801049101,0.36105532,104950.0,104940.0,0.63581755]
[1748801049307,0.35152752,104950.0,104940.0,0.63581851]
[1748801049570,0.002,104950.0,104940.0,0.63581851]
[1748801049745,0.00952698,104960.0,104950.0,0.25075114]
[1748801049746,0.03810819,104960.0,104950.0,0.25075114]
[1748801049955,0.02858094,104960.0,104950.0,0.27223906]
[1748801050394,0.36858094,104960.0,104950.0,0.27223614]
[1748801050898,0.36858094,104960.0,104950.0,0.2900534]
[1748801051450,0.36958094,104960.0,104950.0,0.27223704]
[1748801051622,0.36958094,104960.0,104950.0,0.28114648]
[1748801051623,0.56965715,104960.0,104950.0,0.28114648]
[1748801051829,0.57065715,104960.0,104950.0,0.29105565]
[1748801051974,0.38010837,104960.0,104950.0,0.29105565]
[1748801052176,0.38010837,104960.0,104950.0,0.29593286]
[1748801052402,0.37058094,104960.0,104950.0,0.30546057]
[1748801052988,0.37058094,104960.0,104950.0,0.30545239]
[1748801053310,0.3515268,104960.0,104950.0,0.32326582]
[1748801053510,0.36105378,104960.0,104950.0,0.27873306]
[1748801053725,0.3515268,104960.0,104950.0,0.27873306]
[1748801053932,0.3505268,104960.0,104950.0,0.28763971]
[1748801054139,0.3505268,104960.0,104950.0,0.29654637]
[1748801054367,0.3515268,104960.0,104950.0,0.29754637]
[1748801054840,0.3505268,104960.0,104950.0,0.43251951]
[1748801055070,0.341,104960.0,104950.0,0.41470637]
[1748801055245,0.342,104960.0,104950.0,0.41870637]
[1748801055675,0.342,104960.0,104950.0,0.44542318]
[1748801055676,0.002,104960.0,104950.0,0.44542318]
[1748801055853,0.002,104960.0,104950.0,0.52749401]
[1748801056012,0.11221365,104990.0,104980.0,0.25138824]
[1748801056215,0.48078706,104990.0,104980.0,0.60070053]
[1748801056416,0.02857032,105000.0,104990.0,0.20954312]
[1748801056663,0.44456146,105010.0,105000.0,0.24182334]
[1748801056870,0.46360662,105010.0,105000.0,0.58203182]
[1748801057010,0.65406467,105010.0,105000.0,0.59031312]
[1748801057215,0.30454232,105010.0,105000.0,0.57250838]
[1748801057420,0.30502762,105010.0,105000.0,0.56298467]
[1748801057618,0.61658776,105010.0,105000.0,0.37250848]
[1748801058044,0.64049898,105010.0,105000.0,0.37250848]
[1748801058638,0.55500701,105010.0,105000.0,0.37250848]
[1748801059045,0.55500701,105010.0,105000.0,0.37450848]
[1748801059247,0.55500701,105010.0,105000.0,0.37650848]
[1748801060235,0.55500701,105010.0,105000.0,0.37650745]
[1748801060431,0.55500701,105010.0,105000.0,0.37346]
[1748801061395,0.5646083,105010.0,105000.0,0.37346]
[1748801061827,0.5646083,105010.0,105000.0,0.0363]
[1748801062073,0.5646083,105010.0,105000.0,0.3721]
[1748801062609,0.58335354,105010.0,105000.0,0.3721]
[1748801064619,0.58335354,105010.0,105000.0,0.3709]
[1748801071479,0.58335354,105010.0,105000.0,0.37394747]
[1748801073126,0.57375225,105010.0,105000.0,0.57394737]
[1748801073533,0.57375225,105010.0,105000.0,0.57394728]
[1748801073963,0.57375225,105010.0,105000.0,0.57394746]
[1748801074407,0.57375225,105010.0,105000.0,0.58347117]
[1748801075042,0.57375225,105010.0,105000.0,0.59299479]
[1748801075634,0.35000783,105010.0,105000.0,0.6120414]
[1748801075833,0.3785758,105010.0,105000.0,0.6120414]
[1748801076213,0.3404853,105010.0,105000.0,0.6120414]
[1748801076472,0.35000738,105010.0,105000.0,0.6120414]
[1748801076590,0.35000738,105010.0,105000.0,0.6297945]
[1748801076791,0.35952964,105010.0,105000.0,0.6120414]
[1748801076997,0.35000738,105010.0,105000.0,0.6120414]
[1748801077209,0.35000738,105010.0,105000.0,0.61691439]
[1748801077407,0.35952973,105010.0,105000.0,0.61691439]
[1748801077607,0.35000738,105010.0,105000.0,0.61691439]
[1748801077812,0.35000738,105010.0,105000.0,0.63469946]
[1748801078013,0.35952964,105010.0,105000.0,0.61691439]
[1748801078241,0.35952964,105010.0,105000.0,0.63469888]
[1748801078447,0.35952964,105010.0,105000.0,0.65248378]
[1748801078846,0.35952964,105010.0,105000.0,0.67026864]
[1748801079250,0.01952964,105010.0,105000.0,0.65248378]
[1748801079448,0.0004853,105010.0,105000.0,0.6653947]
[1748801079709,0.0004853,105010.0,105000.0,0.66539413]
[1748801079885,0.01000738,105010.0,105000.0,0.64761079]
[1748801080065,0.01000738,105010.0,105000.0,0.66541197]
[1748801080237,0.01000738,105010.0,105000.0,0.64361079]
[1748801080441,0.01000738,105010.0,105000.0,0.66141196]
[1748801080698,0.02152964,105010.0,105000.0,0.66841196]
[1748801080897,0.02152964,105010.0,105000.0,0.66840863]
[1748801081305,0.02152964,105010.0,105000.0,0.65061079]
[1748801081513,0.02152964,105010.0,105000.0,0.66840863]
[1748801081712,0.02152964,105010.0,105000.0,0.65061079]
[1748801081913,0.02152964,105010.0,105000.0,0.66840858]
[1748801082324,0.02152964,105010.0,105000.0,0.68623671]
[1748801082519,0.02152964,105010.0,105000.0,0.68318965]
[1748801082725,0.02152964,105010.0,105000.0,0.68623656]
[1748801083411,0.0024853,105010.0,105000.0,0.68623044]
[1748801083765,0.01200738,105010.0,105000.0,0.68623044]
[1748801084173,0.3685657,105020.0,105010.0,0.24010321]
[1748801084381,0.55900561,105020.0,105010.0,0.27054335]
[1748801084738,0.55900561,105020.0,105010.0,0.59898335]
[1748801085156,0.55900561,105020.0,105010.0,0.5989792]
[1748801085356,0.55900561,105020.0,105010.0,0.59897919]
[1748801085559,0.55900561,105020.0,105010.0,0.58116134]
[1748801086183,0.55900561,105020.0,105010.0,0.59897923]
[1748801086387,0.55900561,105020.0,105010.0,0.61150167]
[1748801087387,0.55900561,105020.0,105010.0,0.61149792]
[1748801087799,0.55900561,105020.0,105010.0,0.61149788]
[1748801087960,0.34952154,105020.0,105010.0,0.62102023]
[1748801088201,0.36856453,105020.0,105010.0,0.62101977]
[1748801088380,0.34952127,105020.0,105010.0,0.62101977]
[1748801088536,0.35904272,105020.0,105010.0,0.62101977]
[1748801088738,0.35904272,105020.0,105010.0,0.6210172]
[1748801088960,0.35904272,105020.0,105010.0,0.60320567]
[1748801089167,0.35904272,105020.0,105010.0,0.62101648]
[1748801090021,0.34952127,105020.0,105010.0,0.62101648]
[1748801090163,0.35904263,105020.0,105010.0,0.62101648]
[1748801090555,0.36856417,105020.0,105010.0,0.60320567]
[1748801090760,0.36856417,105020.0,105010.0,0.62101036]
[1748801091223,0.37808589,105020.0,105010.0,0.62101036]
[1748801091397,0.36856417,105020.0,105010.0,0.60320567]
[1748801091596,0.36856417,105020.0,105010.0,0.60320559]
[1748801091952,0.36856417,105020.0,105010.0,0.62100837]
[1748801092162,0.36856417,105020.0,105010.0,0.60320559]
[1748801092335,0.36856417,105020.0,105010.0,0.62100837]
[1748801092574,0.36856417,105020.0,105010.0,0.63881115]
[1748801092768,0.36856417,105020.0,105010.0,0.65661351]
[1748801092955,0.36856417,105020.0,105010.0,0.63881115]
[1748801093296,0.36856417,105020.0,105010.0,0.65661351]
[1748801093521,0.36856417,105020.0,105010.0,0.63881115]
[1748801093726,0.55898394,105030.0,105020.0,0.2312619]
[1748801093927,0.56850502,105030.0,105020.0,0.26650773]
[1748801094149,0.56850502,105030.0,105020.0,0.26650633]
[1748801094606,0.56850502,105030.0,105020.0,0.24870594]
[1748801094810,0.56850502,105030.0,105020.0,0.26650633]
[1748801095125,0.56850502,105030.0,105020.0,0.24870594]
[1748801095326,0.55898457,105030.0,105020.0,0.26650633]
[1748801095526,0.55898457,105030.0,105020.0,0.24870594]
[1748801095801,0.55898457,105030.0,105020.0,0.26650646]
[1748801096004,0.55898457,105030.0,105020.0,0.26650563]
[1748801096208,0.55898457,105030.0,105020.0,0.26650559]
[1748801096436,0.55898457,105030.0,105020.0,0.27602722]
[1748801097056,0.36856279,105030.0,105020.0,0.28554867]
[1748801097235,0.55898457,105030.0,105020.0,0.27602776]
[1748801097451,0.34,105030.0,105020.0,0.28554901]
[1748801097663,0.35904099,105030.0,105020.0,0.28067361]
[1748801097873,0.3590409,105030.0,105020.0,0.28066987]
[1748801098047,0.36856162,105030.0,105020.0,0.28066974]
[1748801098227,0.36856153,105030.0,105020.0,0.28066962]
[1748801098418,0.3590409,105030.0,105020.0,0.28066962]
[1748801098620,0.36856153,105030.0,105020.0,0.28267107]
[1748801099080,0.36856153,105030.0,105020.0,0.28366782]
[1748801100238,0.37808243,105030.0,105020.0,0.28366782]
[1748801100551,0.37808243,105030.0,105020.0,0.28366976]
[1748801101383,0.37808243,105030.0,105020.0,0.26587319]
[1748801101861,0.37808243,105030.0,105020.0,0.28366753]
[1748801102287,0.37808243,105030.0,105020.0,0.28367079]
[1748801102485,0.37808243,105030.0,105020.0,0.26587319]
[1748801103528,0.37808243,105030.0,105020.0,0.28367547]
[1748801103704,0.37808243,105030.0,105020.0,0.26587319]
[1748801103911,0.37808243,105030.0,105020.0,0.28368199]
[1748801104512,0.37808243,105030.0,105020.0,0.30149079]
[1748801104712,0.37808243,105030.0,105020.0,0.28368199]
[1748801104867,0.37808243,105030.0,105020.0,0.2806355]
[1748801105063,0.38760342,105030.0,105020.0,0.30150054]
[1748801106095,0.38760342,105030.0,105020.0,0.30149844]
[1748801106344,0.38760342,105030.0,105020.0,0.28368199]
[1748801106548,0.38760342,105030.0,105020.0,0.30149844]
[1748801106744,0.38760342,105030.0,105020.0,0.28368199]
[1748801106948,0.38760342,105030.0,105020.0,0.30149844]
[1748801107123,0.38760342,105030.0,105020.0,0.28368199]
[1748801107324,0.36856153,105030.0,105020.0,0.30149844]
[1748801107535,0.38760324,105030.0,105020.0,0.30149844]
[1748801108146,0.38760324,105030.0,105020.0,0.30637658]
[1748801108341,0.38760324,105030.0,105020.0,0.3063752]
[1748801108746,0.38760324,105030.0,105020.0,0.28856013]
[1748801109170,0.38760324,105030.0,105020.0,0.3063743]
[1748801109520,0.38760324,105030.0,105020.0,0.30637697]
[1748801110965,0.38760324,105030.0,105020.0,0.28856013]
[1748801111192,0.38760324,105030.0,105020.0,0.30637688]
[1748801112655,0.38760324,105030.0,105020.0,0.30637736]
[1748801113112,0.38760324,105030.0,105020.0,0.30637731]
[1748801113844,0.36856153,105030.0,105020.0,0.30637731]
[1748801114045,0.37808234,105030.0,105020.0,0.30637828]
[1748801114228,0.37808234,105030.0,105020.0,0.28856013]
[1748801114428,0.37808234,105030.0,105020.0,0.30637828]
[1748801114866,0.34952036,105030.0,105020.0,0.30637828]
[1748801115061,0.36755219,105030.0,105020.0,0.30637828]
[1748801115293,0.36755219,105030.0,105020.0,0.3063785]
[1748801116134,0.36755219,105030.0,105020.0,0.30637879]
[1748801116135,0.33899075,105030.0,105020.0,0.30637879]
[1748801116289,0.03801945,105040.0,105030.0,0.25058394]
[1748801116492,0.03801945,105040.0,105030.0,0.59664723]
[1748801116699,0.00951954,105040.0,105030.0,0.59664723]
[1748801116879,0.02855926,105040.0,105030.0,0.59664723]
[1748801117085,0.36855926,105040.0,105030.0,0.59664723]
[1748801117292,0.36855926,105040.0,105030.0,0.59664788]
[1748801117505,0.36855926,105040.0,105030.0,0.59664787]
[1748801117693,0.36855926,105040.0,105030.0,0.59664786]
[1748801118239,0.3779688,105040.0,105030.0,0.59664786]
[1748801118393,0.34951954,105040.0,105030.0,0.59664768]
[1748801118599,0.35903936,105040.0,105030.0,0.59664768]
[1748801118805,0.34951954,105040.0,105030.0,0.59664761]
[1748801119020,0.35903936,105040.0,105030.0,0.59664542]
[1748801119221,0.36855936,105040.0,105030.0,0.59664539]
[1748801119426,0.35903936,105040.0,105030.0,0.59664539]
[1748801119626,0.34951954,105040.0,105030.0,0.59664539]
[1748801119835,0.35903926,105040.0,105030.0,0.59664542]
[1748801120257,0.35903926,105040.0,105030.0,0.5966454]
[1748801120720,0.36855917,105040.0,105030.0,0.57882857]
[1748801120995,0.36855917,105040.0,105030.0,0.5966476]
[1748801121351,0.36855917,105040.0,105030.0,0.61446663]
[1748801121626,0.36855917,105040.0,105030.0,0.5966476]
[1748801121867,0.36855917,105040.0,105030.0,0.6144699]
[1748801122117,0.36855917,105040.0,105030.0,0.61446966]
[1748801122350,0.36855917,105040.0,105030.0,0.59664736]
[1748801122619,0.37802308,105040.0,105030.0,0.59664736]
[1748801122835,0.36850317,105040.0,105030.0,0.59664736]
[1748801123088,0.36855917,105040.0,105030.0,0.61446966]
[1748801123328,0.36855917,105040.0,105030.0,0.59664736]
[1748801123565,0.36855917,105040.0,105030.0,0.61446966]
[1748801124027,0.36855926,105040.0,105030.0,0.61446966]
[1748801124270,0.35903926,105040.0,105030.0,0.61446966]
[1748801124522,0.36855926,105040.0,105030.0,0.59877402]
[1748801124805,0.36855926,105040.0,105030.0,0.58095172]
[1748801125043,0.36855926,105040.0,105030.0,0.58095082]
[1748801125487,0.37793923,105040.0,105030.0,0.61265082]
[1748801126004,0.37793923,105040.0,105030.0,0.61265546]
[1748801126249,0.56834288,105040.0,105030.0,0.04357152]
[1748801126453,0.56834288,105040.0,105030.0,0.03869338]
[1748801126454,0.60486419,105040.0,105030.0,0.03869338]
[1748801126658,0.60486419,105040.0,105030.0,0.03869517]
[1748801126659,0.70071849,105040.0,105030.0,0.03869517]
[1748801126799,0.70071849,105040.0,105030.0,0.02086564]
[1748801127000,0.70071849,105040.0,105030.0,0.03869671]
[1748801127706,0.70071849,105040.0,105030.0,0.02086564]
[1748801128078,0.70071849,105040.0,105030.0,0.03869396]
[1748801128669,0.70071849,105040.0,105030.0,0.03869395]
[1748801128879,0.70071849,105040.0,105030.0,0.03869396]
[1748801129113,0.70071849,105040.0,105030.0,0.03869325]
[1748801129317,0.70071849,105040.0,105030.0,0.03869118]
[1748801129522,0.70071849,105040.0,105030.0,0.0386912]
[1748801130543,0.70071849,105040.0,105030.0,0.03869118]
[1748801131141,0.70071849,105040.0,105030.0,0.03868991]
[1748801131783,0.70071849,105040.0,105030.0,0.03868811]
[1748801131983,0.70071849,105040.0,105030.0,0.02086576]
[1748801132120,0.70071849,105040.0,105030.0,0.03868809]
[1748801132550,0.70071849,105040.0,105030.0,0.02086576]
[1748801136238,0.70071849,105040.0,105030.0,0.03868609]
[1748801136680,0.70071849,105040.0,105030.0,0.02086576]
[1748801137616,0.70071849,105040.0,105030.0,0.03868601]
[1748801138111,0.70071849,105040.0,105030.0,0.02086576]
[1748801138308,0.70071849,105040.0,105030.0,0.03868511]
[1748801138510,0.70071849,105040.0,105030.0,0.02086576]
[1748801139248,0.70071849,105040.0,105030.0,0.03868435]
[1748801139477,0.70071849,105040.0,105030.0,0.02086576]
[1748801140286,0.70071849,105040.0,105030.0,0.02086575]
[1748801144111,0.70052807,105040.0,105030.0,0.02086575]
[1748801145259,5.66915529,105040.0,105030.0,0.02086575]
[1748801145467,5.66915529,105040.0,105030.0,0.01781903]
[1748801145468,5.60524107,105040.0,105030.0,0.01781903]
[1748801151503,5.57664407,105040.0,105030.0,0.01781903]
[1748801155788,5.57664407,105040.0,105030.0,0.00997903]
[1748801160254,5.57664407,105040.0,105020.0,0.0178088]
[1748801160255,5.14837953,105030.0,105020.0,0.0178088]
[1748801160471,5.86875271,105030.0,105020.0,0.0178088]
[1748801160679,5.15792029,105020.0,105010.0,0.03565406]
[1748801160887,5.56569459,105020.0,105010.0,0.03565406]
[1748801161319,5.56569459,105020.0,105000.0,0.05336759]
[1748801161320,5.14841762,105010.0,105000.0,0.05336759]
[1748801161538,5.34763192,105010.0,105000.0,0.05336759]
[1748801162469,5.24924445,105010.0,105000.0,0.05336759]
[1748801162720,5.37360445,105010.0,105000.0,0.05436759]
[1748801162934,5.68087192,105010.0,105000.0,0.05436759]
[1748801163144,5.77346314,105010.0,105000.0,0.05436759]
[1748801164216,6.09546314,105010.0,105000.0,0.05536759]
[1748801167866,6.09582314,105010.0,105000.0,0.05536759]
[1748801171070,6.03191992,105010.0,105000.0,0.05536759]
[1748801172826,5.31587992,105010.0,105000.0,0.05536759]
[1748801173027,5.72931992,105010.0,105000.0,0.05536759]
[1748801174084,5.72991992,105010.0,105000.0,0.05536759]
[1748801175104,5.72983992,105010.0,105000.0,0.05536759]
[1748801175454,5.82235114,105010.0,105000.0,0.05536759]
[1748801177307,6.12235114,105010.0,105000.0,0.05536759]
[1748801177511,6.12219936,105010.0,105000.0,0.05536759]
[1748801178347,6.12717189,105010.0,105000.0,0.05536759]
[1748801178548,6.17717189,105010.0,105000.0,0.05536759]
[1748801179885,6.12717189,105010.0,105000.0,0.05536759]
[1748801180089,6.17717189,105010.0,105000.0,0.05536759]
[1748801180290,6.12717189,105010.0,105000.0,0.05536759]
[1748801180491,6.17717189,105010.0,105000.0,0.05536759]
[1748801181544,6.17717189,105010.0,105000.0,0.03303466]
[1748801182508,6.12717189,105010.0,105000.0,0.03303466]
[1748801182861,6.17717189,105010.0,105000.0,0.03303466]
[1748801183314,6.12717189,105010.0,105000.0,0.03303466]
[1748801183520,6.17717189,105010.0,105000.0,0.03303466]
[1748801183724,6.12717189,105010.0,105000.0,0.03303466]
[1748801183933,6.17717189,105010.0,105000.0,0.03303466]
[1748801184145,6.08466067,105010.0,105000.0,0.03303466]
[1748801184761,6.44622067,105010.0,105000.0,0.03303466]
[1748801184934,6.49622067,105010.0,105000.0,0.03303466]
[1748801186054,6.44622067,105010.0,105000.0,0.03303466]
[1748801186177,6.49622067,105010.0,105000.0,0.03303466]
[1748801186384,6.58873189,105010.0,105000.0,0.03303466]
[1748801186698,6.53873189,105010.0,105000.0,0.03303466]
[1748801186901,6.58873189,105010.0,105000.0,0.03303466]
[1748801191066,6.27637189,105010.0,105000.0,0.03303466]
[1748801191267,6.58749189,105010.0,105000.0,0.03303466]
[1748801194002,6.49450067,105010.0,105000.0,0.03303466]
[1748801194209,6.47860067,105010.0,105000.0,0.03303466]
[1748801194455,6.49400067,105010.0,105000.0,0.03303466]
[1748801196909,5.80196067,105010.0,105000.0,0.03303466]
[1748801197135,5.70036067,105010.0,105000.0,0.06363466]
[1748801197353,5.78741982,105010.0,105000.0,0.06363466]
[1748801197579,6.06897182,105010.0,105000.0,0.06363466]
[1748801198201,6.08351267,105010.0,105000.0,0.06363466]
[1748801200367,5.67175267,105010.0,105000.0,0.06363466]
[1748801200573,6.08131267,105010.0,105000.0,0.06363466]
[1748801201481,5.67175267,105010.0,105000.0,0.06363466]
[1748801201683,6.08115267,105010.0,105000.0,0.06363466]
[1748801202857,5.67175267,105010.0,105000.0,0.06363466]
[1748801203065,5.26019267,105010.0,105000.0,0.06363466]
[1748801203272,6.08083267,105010.0,105000.0,0.06363466]
[1748801204381,6.08067267,105010.0,105000.0,0.06363466]
[1748801205302,5.77163267,105010.0,105000.0,0.06363466]
[1748801205497,5.76666014,105010.0,105000.0,0.06363466]
[1748801206347,0.33868329,105010.0,105000.0,0.06668258]
[1748801206548,0.43856329,105010.0,105000.0,0.06668258]
[1748801206742,0.79310414,105010.0,105000.0,0.06668258]
[1748801207360,0.77110414,105010.0,105000.0,0.06568258]
[1748801207710,0.78210414,105010.0,105000.0,0.06668258]
[1748801207887,0.76110414,105010.0,105000.0,0.06568258]
[1748801208313,0.77210414,105010.0,105000.0,0.06668258]
[1748801209205,0.77210414,105010.0,105000.0,0.04888479]
[1748801210232,0.67222414,105010.0,105000.0,0.04888479]
[1748801210434,0.77210414,105010.0,105000.0,0.04888479]
[1748801213223,0.78145703,105010.0,105000.0,0.04888479]
[1748801216855,0.78145703,105010.0,105000.0,0.04583687]
[1748801221633,0.78145703,105010.0,105000.0,0.04888458]
[1748801224479,0.78145703,105010.0,105000.0,0.04888455]
[1748801225372,0.78145703,105010.0,105000.0,0.04888452]
[1748801228989,0.78145703,105010.0,105000.0,0.04888449]
[1748801233033,0.68560273,105010.0,105000.0,0.06671203]
[1748801233237,0.67106188,105010.0,105000.0,0.07339729]
[1748801233452,0.67106188,105010.0,105000.0,0.07339753]
[1748801233614,0.67106188,105010.0,105000.0,0.07339748]
[1748801233815,0.67106188,105010.0,105000.0,0.07705751]
[1748801234280,0.67106188,105010.0,105000.0,0.05254488]
[1748801234483,0.67106188,105010.0,105000.0,0.07705751]
[1748801234904,0.57118188,105010.0,105000.0,0.07705751]
[1748801235107,0.57118188,105010.0,105000.0,0.08194466]
[1748801235515,0.57118188,105010.0,105000.0,0.0782955]
[1748801235720,0.56018188,105010.0,105000.0,0.08096004]
[1748801235922,0.56018188,105010.0,105000.0,0.07427232]
[1748801236130,0.54918188,105010.0,105000.0,0.07327232]
[1748801236328,0.54918188,105010.0,105000.0,0.07996427]
[1748801236535,0.55018188,105010.0,105000.0,0.07996427]
[1748801237117,0.55118188,105010.0,105000.0,0.06211898]
[1748801237316,0.55118188,105010.0,105000.0,0.07996389]
[1748801237523,0.55118188,105010.0,105000.0,0.07996365]
[1748801238090,0.55118188,105010.0,105000.0,0.07996253]
[1748801238555,0.55118188,105010.0,105000.0,0.0799615]
[1748801239194,0.55118188,105010.0,105000.0,0.05542599]
[1748801239398,0.55118188,105010.0,105000.0,0.07995827]
[1748801240288,0.55118188,105010.0,105000.0,0.07995594]
[1748801240493,0.55118188,105010.0,105000.0,0.05542599]
[1748801240905,0.55118188,105010.0,105000.0,0.07995311]
[1748801241756,0.55118188,105010.0,105000.0,0.07507497]
[1748801242409,0.55118188,105010.0,105000.0,0.07507378]
[1748801242777,0.55118188,105010.0,105000.0,0.07507339]
[1748801243757,0.55118188,105010.0,105000.0,0.07507129]
[1748801243896,0.55118188,105010.0,105000.0,0.07507092]
[1748801244837,0.55118188,105010.0,105000.0,0.05723606]
[1748801244995,0.55118188,105010.0,105000.0,0.07507038]
[1748801245419,0.55118188,105010.0,105000.0,0.06838217]
[1748801245628,0.55118188,105010.0,105000.0,0.07507004]
[1748801245883,0.55118188,105010.0,105000.0,0.07506934]
[1748801246432,0.55118188,105010.0,105000.0,0.07506907]
[1748801246633,0.55118188,105010.0,105000.0,0.07506879]
[1748801246999,0.55118188,105010.0,105000.0,0.07506843]
[1748801247338,0.55118188,105010.0,105000.0,0.06837935]
[1748801247560,0.55118188,105010.0,105000.0,0.07506678]
[1748801248075,0.55118188,105010.0,105000.0,0.07506676]
[1748801248599,0.55118188,105010.0,105000.0,0.06837935]
[1748801248760,0.55118188,105010.0,105000.0,0.07506691]
[1748801248974,0.55118188,105010.0,105000.0,0.06837968]
[1748801249162,0.55118188,105010.0,105000.0,0.07506724]
[1748801250473,0.55118188,105010.0,105000.0,0.05723374]
[1748801251107,0.55118188,105010.0,105000.0,0.07506741]
[1748801251772,0.55118188,105010.0,105000.0,0.07506746]
[1748801251975,0.55118188,105010.0,105000.0,0.07506836]
[1748801252631,0.55118188,105010.0,105000.0,0.07506884]
[1748801253149,0.54182899,105010.0,105000.0,0.07506923]
[1748801253341,0.54182899,105010.0,105000.0,0.07506924]
[1748801253552,0.54182899,105010.0,105000.0,0.0750706]
[1748801253867,0.54182899,105010.0,105000.0,0.05723488]
[1748801253984,0.54182899,105010.0,105000.0,0.0750706]
[1748801254751,0.54182899,105010.0,105000.0,0.07507177]
[1748801254969,0.54182899,105010.0,105000.0,0.05054649]
[1748801255160,0.54182899,105010.0,105000.0,0.07507221]
[1748801255534,0.54182899,105010.0,105000.0,0.05723532]
[1748801255739,0.54182899,105010.0,105000.0,0.07507264]
[1748801256263,0.54182899,105010.0,105000.0,0.05723532]
[1748801256479,0.54182899,105010.0,105000.0,0.07507298]
[1748801256677,0.54182899,105010.0,105000.0,0.07507377]
[1748801256993,0.54182899,105010.0,105000.0,0.07507398]
[1748801257584,0.54182899,105010.0,105000.0,0.07507432]
[1748801257788,0.54182899,105010.0,105000.0,0.05054728]
[1748801257990,0.54182899,105010.0,105000.0,0.07507549]
[1748801258191,0.54182899,105010.0,105000.0,0.07507551]
[1748801258412,0.54182899,105010.0,105000.0,0.07507748]
[1748801259245,0.54182899,105010.0,105000.0,0.07507749]
[1748801259443,0.54182899,105010.0,105000.0,0.07995563]
[1748801259826,0.54182899,105010.0,105000.0,0.07995631]
[1748801260321,0.54182899,105010.0,105000.0,0.07326557]
[1748801260531,0.54182899,105010.0,105000.0,0.07995815]
[1748801260757,0.54182899,105010.0,105000.0,0.07996086]
[1748801261489,0.54182899,105010.0,105000.0,0.07996232]
[1748801262163,0.54182899,105010.0,105000.0,0.06211809]
[1748801262302,0.54182899,105010.0,105000.0,0.07996232]
[1748801263135,0.54182899,105010.0,105000.0,0.05542651]
[1748801263321,0.54182899,105010.0,105000.0,0.0799697]
[1748801263524,0.54182899,105010.0,105000.0,0.07996971]
[1748801263879,0.54182899,105010.0,105000.0,0.06211924]
[1748801264087,0.54182899,105010.0,105000.0,0.07996983]
[1748801264293,0.54182899,105010.0,105000.0,0.07997107]
[1748801264830,0.54182899,105010.0,105000.0,0.07997448]
[1748801264984,0.54182899,105010.0,105000.0,0.07997788]
[1748801265383,0.54182899,105010.0,105000.0,0.07631168]
[1748801265590,0.54182899,105010.0,105000.0,0.07631172]
[1748801266766,0.54182899,105010.0,105000.0,0.05845769]
[1748801266948,0.54182899,105010.0,105000.0,0.07631172]
[1748801267349,0.54182899,105010.0,105000.0,0.07997793]
[1748801267549,0.54182899,105010.0,105000.0,0.07631172]
[1748801268358,0.54182899,105010.0,105000.0,0.07631174]
[1748801268560,0.54182899,105010.0,105000.0,0.06961649]
[1748801268780,0.54182899,105010.0,105000.0,0.07631176]
[1748801270012,0.54182899,105010.0,105000.0,0.05845772]
[1748801270230,0.54182899,105010.0,105000.0,0.07631183]
[1748801270369,0.54182899,105010.0,105000.0,0.06961661]
[1748801270574,0.54182899,105010.0,105000.0,0.07631193]
[1748801271654,0.54182899,105010.0,105000.0,0.06961661]
[1748801271775,0.54182899,105010.0,105000.0,0.06961663]
[1748801271981,0.54182899,105010.0,105000.0,0.07631195]
[1748801272677,0.54182899,105010.0,105000.0,0.07631199]
[1748801272877,0.54182899,105010.0,105000.0,0.05176243]
[1748801273059,0.54182899,105010.0,105000.0,0.0763121]
[1748801273467,0.54182899,105010.0,105000.0,0.06961687]
[1748801273877,0.54182899,105010.0,105000.0,0.07631228]
[1748801274024,0.54182899,105010.0,105000.0,0.06961687]
[1748801274365,0.54182899,105010.0,105000.0,0.07631228]
[1748801275290,0.54182899,105010.0,105000.0,0.07631226]